bitfinex-derivatives/quotes_ETHF0:USTF0_20250904
["timestamp","ask_amount","ask_price","bid_price","bid_amount"]
[1756994854491,1.4794,4344.6,4343.9,3.2078]
[1756994854687,1.4794,4344.6,4344.0,0.299]
[1756994854889,3.2078,4344.9,4344.1,1.5783]
[1756994855281,0.115,4344.8,4344.5,1.5783]
[1756994855486,0.115,4344.8,4344.4,3.2078]
[1756994855684,1.4794,4344.4,4344.0,0.299]
[1756994855986,1.4794,4344.1,4343.5,0.299]
[1756994856192,1.4794,4343.8,4343.5,0.299]
[1756994856382,3.2078,4343.9,4343.5,0.299]
[1756994856585,3.2078,4343.9,4343.6,1.5783]
[1756994856786,1.4794,4344.3,4343.6,1.5783]
[1756994857083,1.4794,4344.6,4343.7,0.299]
[1756994857386,1.4794,4344.6,4343.3,3.2078]
[1756994857387,1.4794,4344.5,4343.5,1.5783]
[1756994857593,1.4794,4344.5,4343.6,0.299]
[1756994857792,1.4794,4344.5,4343.8,0.41426]
[1756994857987,0.115,4344.8,4344.4,0.4142]
[1756994858289,1.4794,4344.7,4344.5,0.298]
[1756994858487,1.89363,4344.2,4343.8,4.7861]
[1756994858687,1.4794,4343.9,4343.3,3.2078]
[1756994858882,1.4794,4343.4,4343.3,3.2078]
[1756994859082,1.4794,4343.4,4343.3,3.5058]
[1756994859288,0.41425,4344.0,4343.3,3.5058]
[1756994859489,1.4794,4344.3,4343.3,3.5058]
[1756994859793,0.41429,4343.6,4343.4,0.298]
[1756994860087,0.41422,4344.4,4343.4,0.298]
[1756994860288,1.4794,4344.5,4343.8,3.2078]
[1756994860588,1.4794,4344.5,4343.9,0.298]
[1756994860885,0.115,4344.8,4344.0,1.5783]
[1756994861090,0.115,4344.8,4343.9,0.298]
[1756994861091,0.115,4344.8,4344.4,0.4142]
[1756994861291,0.115,4344.8,4344.6,1.99249]
[1756994861483,0.115,4344.8,4344.7,1.8753]
[1756994862286,0.115,4344.8,4344.7,5.8753]
[1756994862492,0.115,4344.8,4344.7,1.5783]
[1756994862687,0.115,4344.8,4344.7,1.8753]
[1756994862994,0.115,4344.8,4344.7,1.84238]
[1756994863290,0.115,4344.8,4344.7,1.7242]
[1756994863993,0.115,4344.8,4344.7,0.296]
[1756994864191,1.4378,4344.7,4344.0,31.768]
[1756994864391,3.3228,4344.8,4344.0,31.768]
[1756994864392,1.4378,4344.2,4344.0,31.768]
[1756994864590,1.03563,4344.0,4343.3,0.296]
[1756994864791,1.4378,4343.6,4342.7,3.2078]
[1756994865002,3.2078,4343.1,4342.8,0.296]
[1756994865299,1.4378,4343.0,4342.9,0.296]
[1756994865489,1.4378,4343.6,4342.9,0.296]
[1756994865686,1.4378,4343.6,4342.4,1.4282]
[1756994865992,1.4378,4343.6,4342.5,0.71039]
[1756994866491,3.2078,4343.1,4342.9,0.41435]
[1756994866693,3.2078,4343.1,4343.0,0.295]
[1756994866998,3.2078,4344.2,4343.4,0.4143]
[1756994867203,1.4378,4344.1,4344.0,1.0]
[1756994867887,5.4378,4344.1,4343.4,0.295]
[1756994868092,1.4378,4343.4,4342.8,0.295]
[1756994868294,3.2078,4342.9,4342.8,1.7232]
[1756994868592,3.2078,4342.9,4342.1,1.4282]
[1756994868790,3.2078,4342.9,4342.2,0.295]
[1756994868985,3.2078,4343.1,4342.6,0.41438]
[1756994869189,3.2078,4343.1,4342.2,1.4282]
[1756994869389,3.2078,4342.6,4341.4,2.0569]
[1756994869598,1.4378,4341.8,4341.5,0.294]
[1756994870203,4.6456,4341.9,4341.5,0.294]
[1756994870497,3.2078,4341.9,4341.5,0.294]
[1756994870902,3.2078,4341.9,4341.6,1.4282]
[1756994871204,3.2078,4342.1,4341.6,1.4282]
[1756994871503,3.2078,4342.1,4341.8,1.4282]
[1756994871701,3.2078,4342.1,4341.7,0.70847]
[1756994871902,3.2078,4342.6,4342.2,1.4282]
[1756994872097,3.2078,4342.6,4342.3,0.294]
[1756994872401,3.2078,4342.6,4342.4,0.294]
[1756994872594,3.2078,4342.6,4342.5,0.294]
[1756994872797,3.2078,4342.6,4342.5,1.7222]
[1756994872995,0.41452,4341.3,4340.9,1.4282]
[1756994873194,0.1151,4341.2,4341.1,0.293]
[1756994873497,1.03603,4342.4,4341.1,0.293]
[1756994873498,1.4378,4342.6,4341.1,3.5008]
[1756994873706,0.41444,4342.1,4341.2,1.84272]
[1756994873898,1.4378,4342.6,4341.2,1.4282]
[1756994874100,3.2078,4342.8,4342.2,0.41442]
[1756994874312,1.4378,4343.3,4342.4,1.4282]
[1756994874605,1.4378,4343.3,4342.6,1.4282]
[1756994874606,0.1147,4342.7,4342.6,1.4282]
[1756994875509,0.41432,4343.4,4342.6,1.84259]
[1756994875701,3.2078,4343.9,4343.0,3.2078]
[1756994875901,3.2078,4343.9,4343.1,1.7212]
[1756994876405,3.2078,4344.5,4343.8,1.84247]
[1756994876601,3.2078,4344.5,4343.5,3.8329]
[1756994876602,3.3225,4344.5,4344.1,0.41424]
[1756994876799,3.3225,4344.5,4344.3,1.4282]
[1756994876800,0.1147,4344.5,4344.3,1.4282]
[1756994876999,0.1147,4344.5,4344.4,1.7202]
[1756994877998,3.2078,4345.0,4344.2,0.6251]
[1756994878200,0.41425,4344.1,4343.8,2.04295425]
[1756994878408,1.03535,4345.3,4344.0,4.636]
[1756994878600,0.41418,4344.8,4344.7,1.4282]
[1756994878911,0.41418,4344.9,4344.8,1.4282]
[1756994879212,1.03534,4345.3,4344.2,1.4282]
[1756994879404,0.41422,4344.4,4344.3,0.291]
[1756994879610,0.41421,4344.6,4344.3,0.291]
[1756994879808,0.1146,4345.3,4344.4,1.4282]
[1756994880010,0.41416,4345.1,4344.4,1.4282]
[1756994880313,0.1146,4345.3,4344.4,1.4282]
[1756994880512,0.4142,4344.7,4344.5,0.291]
[1756994880708,0.1146,4345.3,4344.9,0.41417]
[1756994880914,1.4378,4346.8,4345.7,1.4282]
[1756994881110,1.4378,4346.8,4345.8,0.291]
[1756994881111,1.03504,4346.6,4345.8,0.291]
[1756994881313,1.4378,4346.8,4345.8,0.291]
[1756994881712,0.414,4346.7,4345.8,0.291]
[1756994881912,1.4378,4346.8,4345.9,1.4282]
[1756994882215,3.2078,4347.2,4345.9,1.4282]
[1756994882514,1.03506,4346.5,4345.8,0.291]
[1756994882719,3.2078,4347.2,4345.9,5.24191637]
[1756994882913,2.47277,4346.9,4345.8,0.6251]
[1756994883116,1.532,4345.9,4345.8,2.0533]
[1756994883415,0.41396,4347.1,4345.9,1.4282]
[1756994883616,0.41396,4347.2,4346.3,4.636]
[1756994883810,3.5794,4347.7,4346.3,4.926]
[1756994883811,0.41402,4346.5,4346.3,4.926]
[1756994884020,0.41402,4346.5,4346.3,3.4978]
[1756994884531,2.6386,4346.4,4346.3,0.29]
[1756994884723,1.8632,4345.8,4345.6,1.4282]
[1756994884919,2.27728,4345.8,4345.7,0.29]
[1756994885224,3.71508,4345.8,4345.7,0.29]
[1756994885427,1.4378,4345.6,4345.5,3.2078]
[1756994885618,1.4378,4345.6,4345.5,0.289]
[1756994885928,0.7103661,4346.4,4346.2,0.41404]
[1756994886125,0.7103661,4346.4,4346.3,9.72361637]
[1756994887024,0.7103661,4346.4,4346.3,3.2078]
[1756994887231,2.1481661,4346.4,4346.3,3.4968]
[1756994887430,2.1481661,4346.4,4346.0,40.8]
[1756994887733,1.85185,4346.2,4346.1,0.289]
[1756994887928,0.41411,4345.6,4345.1,31.77]
[1756994888227,1.4378,4345.5,4345.2,0.289]
[1756994888426,1.4378,4346.2,4345.4,3.2078]
[1756994888824,1.4378,4346.2,4345.5,0.288]
[1756994889530,1.4378,4346.2,4345.4,3.2078]
[1756994889929,1.4378,4346.0,4345.1,31.77]
[1756994890130,3.2078,4345.7,4345.2,0.288]
[1756994890428,3.2078,4345.7,4345.1,31.77]
[1756994890429,1.4378,4345.5,4345.3,0.288]
[1756994891124,1.4378,4345.5,4345.1,31.77]
[1756994891428,0.5997,4345.6,4345.1,31.77]
[1756994891429,0.5997,4345.6,4345.2,0.288]
[1756994891833,1.4378,4346.1,4345.2,0.70214]
[1756994892035,1.4378,4346.1,4345.2,0.288]
[1756994892327,1.4378,4346.1,4345.5,0.41411]
[1756994892527,1.4378,4346.1,4345.7,0.41409]
[1756994892833,0.7103661,4346.4,4346.1,0.41405]
[1756994893035,0.7103661,4346.4,4346.2,1.68174]
[1756994893330,0.7103661,4346.4,4346.3,0.287]
[1756994893728,0.7103661,4346.4,4345.9,3.2078]
[1756994893927,3.8386,4346.3,4345.4,3.2078]
[1756994894229,0.7103661,4346.4,4343.8,1.03567]
[1756994894230,2.2432661,4346.4,4345.8,8.44971637]
[1756994894430,0.7103661,4346.4,4345.8,8.44971637]
[1756994894630,0.7103661,4346.4,4346.3,3.2078]
[1756994894831,0.7103661,4346.4,4346.3,3.4948]
[1756994895231,0.7103661,4346.4,4346.3,4.4755]
[1756994895632,0.3716,4347.7,4346.3,8.4755]
[1756994895941,1.5329,4347.6,4346.8,3.2078]
[1756994896134,0.3716,4347.7,4346.9,0.286]
[1756994896135,1.9045,4347.7,4346.9,0.286]
[1756994896431,1.5329,4347.7,4347.4,3.2078]
[1756994896636,1.5329,4348.0,4347.5,0.286]
[1756994896837,1.5329,4348.0,4346.9,32.16798]
[1756994897036,1.5329,4348.0,4347.1,0.41396]
[1756994897334,0.6308,4347.6,4347.2,0.286]
[1756994897730,1.5329,4347.5,4347.2,0.286]
[1756994898133,1.5329,4347.5,4347.3,0.41394]
[1756994898434,1.5329,4347.5,4347.2,0.286]
[1756994898631,1.5329,4347.5,4346.9,31.754]
[1756994898935,3.8386,4347.0,4345.4,2.04295425]
[1756994899141,3.2078,4346.5,4345.3,1.7529]
[1756994899738,0.6308,4347.0,4345.8,0.6014]
[1756994899739,3.2078,4347.0,4345.8,0.6014]
[1756994900041,0.6308,4348.8,4345.8,0.6014]
[1756994900042,3.2078,4347.9,4346.1,3.2078]
[1756994900239,3.2078,4347.4,4346.3,0.6014]
[1756994900434,3.2078,4347.4,4345.4,31.751]
[1756994900435,3.2078,4347.1,4344.8,3.2078]
[1756994900635,3.2078,4346.0,4344.8,3.2078]
[1756994900937,3.2078,4344.9,4343.8,1.4679]
[1756994901441,3.2078,4344.9,4344.0,1.88216]
[1756994901636,3.2078,4344.9,4344.2,0.6014]
[1756994901836,3.2078,4344.9,4344.3,0.285]
[1756994902036,3.2078,4344.9,4344.4,0.41421]
[1756994902239,3.2078,4345.8,4344.6,1.4679]
[1756994902440,3.2078,4345.8,4344.7,0.285]
[1756994902639,3.2078,4345.8,4344.8,0.285]
[1756994903239,3.2078,4345.8,4344.9,0.6014]
[1756994903639,3.2078,4345.8,4345.0,0.285]
[1756994903840,3.2078,4345.8,4345.1,0.285]
[1756994904042,3.2078,4345.3,4344.6,1.4679]
[1756994904239,3.2078,4345.3,4344.7,0.284]
[1756994904445,3.2078,4345.3,4344.0,3.2078]
[1756994904741,3.2078,4345.3,4344.0,0.284]
[1756994904944,3.43797,4345.3,4344.0,0.284]
[1756994905138,3.2078,4344.6,4344.0,0.284]
[1756994905341,3.2078,4344.6,4343.6,1.4679]
[1756994905636,3.2078,4344.6,4343.7,0.285]
[1756994906044,3.2078,4344.1,4343.6,1.4679]
[1756994906239,3.2078,4344.1,4343.7,0.285]
[1756994906442,3.2078,4344.1,4343.2,3.2078]
[1756994906743,3.2078,4344.1,4342.7,3.2078]
[1756994907044,3.2078,4343.0,4342.3,1.4679]
[1756994907248,0.284,4344.5,4341.7,3.2078]
[1756994907249,3.2078,4342.5,4341.7,3.2078]
[1756994908545,3.2078,4342.0,4341.6,0.284]
[1756994908847,3.2078,4342.0,4341.4,0.284]
[1756994909238,3.2078,4342.0,4340.8,1.4679]
[1756994909445,3.2078,4341.5,4340.9,0.284]
[1756994910149,3.2078,4341.0,4340.5,0.283]
[1756994910544,3.2078,4341.0,4340.6,1.4679]
[1756994910747,3.2078,4341.5,4340.7,0.6014]
[1756994911049,3.2078,4342.1,4340.8,1.4679]
[1756994911248,3.2078,4342.1,4340.7,0.6014]
[1756994911249,3.2078,4342.7,4341.4,0.6014]
[1756994911443,3.2078,4342.7,4341.5,0.283]
[1756994912146,3.2078,4342.7,4341.7,3.2078]
[1756994912341,3.2078,4342.7,4341.5,0.283]
[1756994912742,3.2078,4342.7,4341.7,3.2078]
[1756994913343,3.2078,4342.7,4341.5,0.283]
[1756994913747,3.2078,4342.1,4341.5,0.282]
[1756994914339,3.2078,4342.1,4341.7,1.4679]
[1756994914543,3.2078,4342.1,4341.6,0.6014]
[1756994914752,3.2078,4342.1,4341.7,1.4679]
[1756994914944,3.2078,4342.1,4341.6,0.6014]
[1756994915245,3.2078,4342.1,4341.9,1.4679]
[1756994915446,3.2078,4342.1,4341.7,0.282]
[1756994915643,3.2078,4342.1,4341.8,1.4679]
[1756994915847,3.2078,4342.1,4341.7,0.282]
[1756994916046,3.2078,4342.1,4341.8,1.4679]
[1756994916247,3.2078,4342.1,4341.7,0.282]
[1756994916447,3.2078,4342.1,4341.8,1.4679]
[1756994916949,3.2078,4342.7,4342.0,0.41444]
[1756994917253,3.2078,4342.7,4342.3,1.4679]
[1756994917454,3.2078,4342.7,4342.4,0.281]
[1756994917750,3.2078,4343.2,4342.5,1.4679]
[1756994918046,3.2078,4343.7,4342.6,0.281]
[1756994918349,0.41438,4342.8,4342.7,1.4679]
[1756994918746,0.41447,4341.9,4341.8,1.4679]
[1756994918946,0.41444,4342.1,4341.8,1.7489]
[1756994919153,3.2078,4342.7,4341.9,1.4679]
[1756994919344,0.41441,4342.4,4341.8,0.281]
[1756994919649,0.41433,4343.2,4342.3,1.4679]
[1756994919853,3.2078,4343.3,4342.5,1.4679]
[1756994920151,1.03575,4343.6,4343.2,1.4679]
[1756994920152,3.2078,4343.6,4343.2,1.4679]
[1756994920340,0.41431,4343.5,4343.3,0.281]
[1756994920546,0.41429,4343.7,4343.4,0.6014]
[1756994920745,0.4143,4343.6,4343.5,1.4679]
[1756994920946,0.4143,4343.6,4343.5,1.7489]
[1756994921554,0.4143,4343.6,4342.8,2.3503]
[1756994921555,0.41436,4342.9,4342.8,2.3503]
[1756994921748,0.41436,4342.9,4342.2,33.8443]
[1756994921749,0.41442,4342.3,4342.2,33.8443]
[1756994921944,0.41442,4342.3,4342.2,34.1253]
[1756994922552,0.41442,4342.3,4342.2,31.775]
[1756994922844,0.41442,4342.3,4341.6,2.0573]
[1756994922845,0.41448,4341.7,4341.6,2.0573]
[1756994923044,1.03619,4341.8,4341.3,3.2078]
[1756994923249,1.03619,4341.8,4340.6,36.35592004]
[1756994923250,0.41457,4340.7,4340.6,31.775]
[1756994923462,0.41457,4340.7,4340.6,32.055]
[1756994923755,0.41457,4340.7,4340.6,31.775]
[1756994923952,3.2078,4341.1,4340.6,32.055]
[1756994924150,3.2078,4341.7,4340.6,32.055]
[1756994924355,1.03623,4341.6,4340.6,32.055]
[1756994924556,3.2078,4341.7,4340.6,32.055]
[1756994924752,3.2078,4341.7,4340.9,3.2078]
[1756994924958,3.2078,4341.7,4341.0,0.28]
[1756994925249,3.2078,4341.7,4341.1,0.28]
[1756994925446,0.41457,4340.7,4340.6,31.775]
[1756994925651,0.41461,4340.3,4340.2,3.2078]
[1756994925850,0.41466,4339.9,4339.6,3.2078]
[1756994926050,0.41466,4339.9,4339.7,0.28]
[1756994926252,3.2078,4340.7,4339.7,0.28]
[1756994926453,0.41459,4340.5,4339.7,0.28]
[1756994926653,3.2078,4340.7,4339.7,0.28]
[1756994926854,3.2078,4340.7,4339.7,4.86092004]
[1756994927054,3.62238,4340.7,4340.2,4.58092004]
[1756994927256,3.2078,4340.7,4340.3,0.279]
[1756994927554,3.2078,4341.4,4340.4,3.2078]
[1756994927758,3.2078,4341.4,4340.9,4.58092004]
[1756994928057,3.2078,4341.4,4341.0,0.279]
[1756994928252,0.41447,4341.8,4341.1,1.4559]
[1756994928455,3.2078,4342.0,4341.1,1.4559]
[1756994928650,3.2078,4342.0,4339.1,2.04295425]
[1756994928651,0.41456,4340.8,4340.6,0.279]
[1756994928850,0.41457,4340.7,4340.5,0.1639]
[1756994929058,3.2078,4341.0,4340.4,0.279]
[1756994929260,3.62239,4340.5,4340.4,0.279]
[1756994929561,0.41462,4340.3,4339.4,3.2078]
[1756994929751,3.2078,4341.0,4339.6,1.4559]
[1756994929955,0.41466,4339.8,4339.5,1.4559]
[1756994930151,0.41466,4339.8,4339.7,1.4559]
[1756994930453,3.2078,4340.5,4340.0,1.02334]
[1756994930656,3.2078,4340.5,4340.1,4.85992004]
[1756994930858,3.2078,4340.5,4340.2,0.279]
[1756994931454,3.2078,4341.0,4340.3,1.4559]
[1756994932163,3.2078,4341.0,4340.7,1.4559]
[1756994932461,3.2078,4341.7,4341.0,0.6087]
[1756994932860,3.2078,4341.2,4341.1,0.278]
[1756994933054,3.2078,4341.2,4340.0,3.8165]
[1756994933055,3.2078,4341.7,4340.0,0.6087]
[1756994933265,3.2078,4340.2,4339.7,0.243]
[1756994933466,3.2078,4340.2,4339.5,0.278]
[1756994934963,3.2078,4340.2,4339.6,1.4559]
[1756994935154,3.2078,4340.2,4339.5,3.90048]
[1756994935355,3.2078,4340.2,4339.7,0.41466]
[1756994935559,3.2078,4340.2,4339.9,1.4559]
[1756994935756,3.2078,4340.2,4340.0,0.278]
[1756994936067,3.2078,4340.2,4339.6,1.4559]
[1756994936259,3.2078,4340.7,4339.8,0.6087]
[1756994936454,3.2078,4340.7,4339.9,1.4559]
[1756994936662,3.2078,4340.2,4339.6,0.278]
[1756994936960,3.2078,4339.7,4338.9,32.056]
[1756994937868,3.2078,4339.2,4338.9,30.2736]
[1756994938165,3.2078,4339.7,4338.9,30.2736]
[1756994939068,3.2078,4339.2,4338.9,30.2736]
[1756994939567,3.2078,4339.2,4339.0,1.4559]
[1756994939765,3.2078,4339.7,4339.0,1.4559]
[1756994939962,3.62248,4339.7,4339.3,1.4559]
[1756994940160,3.62248,4339.7,4339.2,1.02341]
[1756994940161,3.2078,4339.7,4339.4,0.277]
[1756994940464,0.41468,4339.6,4339.5,0.277]
[1756994940765,0.41471,4339.3,4339.2,0.6087]
[1756994940961,0.41473,4339.0,4338.9,29.9956]
[1756994941162,0.41473,4339.0,4338.9,1.7329]
[1756994941360,0.41473,4339.0,4338.9,0.277]
[1756994941962,0.41473,4339.0,4338.9,1.7329]
[1756994942561,0.41473,4339.1,4338.9,1.7329]
[1756994942766,3.2078,4339.2,4338.9,0.277]
[1756994943068,0.41473,4339.1,4338.9,0.277]
[1756994943866,0.41472,4339.1,4339.0,0.6087]
[1756994944169,3.62252,4339.2,4339.1,1.4559]
[1756994944571,0.41473,4339.0,4338.9,0.277]
[1756994945167,3.2078,4339.2,4338.6,1.4559]
[1756994945168,2.07366,4339.1,4338.6,1.4559]
[1756994945370,2.07366,4339.1,4338.0,0.6087]
[1756994945371,0.41482,4338.1,4338.0,2.0646]
[1756994945671,0.41487,4337.6,4337.5,0.8847]
[1756994945872,0.41487,4337.6,4337.5,2.3406]
[1756994946261,0.41487,4337.6,4337.5,2.0646]
[1756994946469,4.24487,4338.1,4337.5,2.0646]
[1756994946470,0.41486,4337.7,4337.6,1.4559]
[1756994946765,0.275,4338.6,4337.6,1.4559]
[1756994946766,0.4148,4338.4,4338.1,1.4559]
[1756994946971,0.4148,4338.4,4338.3,1.4559]
[1756994947167,0.41479,4338.5,4338.3,1.4559]
[1756994947369,0.41477,4338.7,4338.3,1.4559]
[1756994947670,0.41477,4338.6,4338.5,2.0646]
[1756994947864,0.41477,4338.6,4338.5,2.3396]
[1756994948060,0.41477,4338.6,4338.5,2.0646]
[1756994948470,3.2078,4339.2,4339.0,0.6087]
[1756994948670,3.62251,4339.2,4339.1,1.4559]
[1756994949069,3.2078,4339.2,4339.1,1.4559]
[1756994949265,0.41477,4338.6,4338.5,5.2724]
[1756994949472,0.41477,4338.6,4338.5,2.3396]
[1756994949768,3.2078,4339.2,4339.1,1.4559]
[1756994950075,0.41468,4339.6,4339.5,2.0646]
[1756994950273,0.41468,4339.6,4339.5,2.3396]
[1756994950676,0.41472,4339.1,4339.0,1.4559]
[1756994950867,0.41472,4339.1,4339.0,2.0646]
[1756994951067,0.41472,4339.2,4339.0,0.8837]
[1756994951268,0.41468,4339.6,4339.5,2.0646]
[1756994951570,0.41468,4339.6,4339.5,2.3396]
[1756994951775,0.41468,4339.6,4339.5,2.0646]
[1756994951973,0.41468,4339.6,4339.5,2.3396]
[1756994952776,1.03653,4340.4,4339.5,2.3396]
[1756994952777,3.2078,4340.5,4339.6,1.91967]
[1756994953079,0.41461,4340.3,4340.1,1.505]
[1756994953275,3.62239,4340.5,4340.3,1.505]
[1756994953670,3.6224,4340.5,4340.3,1.505]
[1756994953878,0.41461,4340.3,4340.2,1.779]
[1756994954071,0.41461,4340.3,4340.2,1.505]
[1756994954465,0.41463,4340.1,4340.0,1.505]
[1756994954672,0.41472,4339.2,4339.1,1.505]
[1756994956668,3.2078,4339.3,4339.1,1.505]
[1756994956876,3.2078,4340.0,4339.5,0.5763]
[1756994957175,3.2078,4340.6,4339.7,1.505]
[1756994957376,0.41467,4339.8,4339.7,1.505]
[1756994957576,0.41472,4339.3,4339.2,1.505]
[1756994957770,1.03651,4340.5,4339.2,2.19372]
[1756994957977,3.4818,4341.1,4339.7,1.505]
[1756994957978,3.2078,4341.1,4339.7,1.505]
[1756994958177,0.41464,4340.1,4339.8,1.779]
[1756994958377,4.655,4341.1,4340.0,2.0813]
[1756994958579,0.41458,4340.7,4340.1,1.779]
[1756994958778,0.41459,4340.6,4340.5,2.0813]
[1756994959073,0.41459,4340.6,4340.5,2.3553]
[1756994959879,0.41457,4340.8,4340.6,1.505]
[1756994960083,3.2078,4341.1,4340.5,0.8503]
[1756994960278,0.41459,4340.6,4340.5,0.8503]
[1756994960486,0.41459,4340.6,4340.5,2.3553]
[1756994960776,0.41463,4340.1,4340.0,0.5763]
[1756994960981,0.41467,4339.7,4339.6,1.505]
[1756994961280,3.2078,4340.6,4339.6,1.779]
[1756994961479,3.2078,4340.6,4340.1,1.505]
[1756994961782,0.41462,4340.3,4340.2,1.779]
[1756994962178,0.41461,4340.4,4340.3,1.505]
[1756994962379,1.03638,4341.0,4340.3,1.505]
[1756994962880,0.41462,4340.3,4340.2,0.274]
[1756994963080,3.2078,4341.1,4341.0,2.0813]
[1756994963281,3.2078,4341.1,4341.0,2.3553]
[1756994964578,3.2078,4341.1,4341.0,0.274]
[1756994964975,3.2078,4342.6,4341.0,8.0581]
[1756994965174,3.2078,4342.6,4341.2,3.62232]
[1756994965371,3.2078,4342.0,4341.3,0.274]
[1756994965581,7.95499028,4342.0,4341.4,0.274]
[1756994965775,3.2078,4341.5,4340.6,31.797]
[1756994965975,1.4472,4341.4,4340.6,31.797]
[1756994966180,3.2078,4341.0,4340.6,31.797]
[1756994966380,1.4472,4340.8,4340.2,0.274]
[1756994966679,1.4472,4340.9,4340.2,0.274]
[1756994967178,3.2078,4341.2,4340.2,4.9868]
[1756994967479,3.2078,4341.2,4340.4,4.12179028]
[1756994967687,3.2078,4341.2,4340.9,4.12179028]
[1756994967985,1.4472,4341.5,4341.1,0.8146]
[1756994968182,0.6254,4341.0,4340.3,2.33600833]
[1756994968376,1.4472,4340.4,4339.9,0.274]
[1756994968582,1.4472,4339.9,4339.0,2.06200833]
[1756994968885,0.6254,4339.5,4339.0,0.274]
[1756994969080,1.4472,4339.4,4339.0,0.274]
[1756994969384,1.4472,4339.4,4339.2,4.12179028]
[1756994969585,0.6254,4339.5,4339.0,0.274]
[1756994969780,1.4472,4339.1,4339.0,0.274]
[1756994970285,1.4472,4339.0,4338.6,0.274]
[1756994970488,1.4472,4338.9,4338.6,0.274]
[1756994970686,3.2078,4339.2,4338.6,0.274]
[1756994972080,1.4472,4338.9,4338.6,0.274]
[1756994972275,1.4472,4338.9,4338.1,3.2078]
[1756994972476,0.41482,4338.2,4338.1,3.2078]
[1756994972679,0.41482,4338.2,4338.0,0.274]
[1756994972883,0.6254,4337.4,4337.0,2.85755634]
[1756994973184,1.4472,4337.9,4337.1,4.12179028]
[1756994973782,1.4472,4337.9,4337.0,0.274]
[1756994974085,1.4472,4337.9,4337.3,3.2078]
[1756994974289,1.4472,4338.4,4337.6,4.12179028]
[1756994974488,1.4472,4338.4,4337.7,0.274]
[1756994974784,1.4472,4338.4,4337.4,0.274]
[1756994974981,1.4472,4338.4,4337.5,0.274]
[1756994975188,1.4472,4338.4,4337.6,1.505]
[1756994975385,3.2078,4338.7,4337.8,4.12179028]
[1756994975590,1.4472,4338.9,4338.0,2.0813]
[1756994975779,1.4472,4338.9,4338.0,2.49613]
[1756994975979,1.4472,4338.9,4338.1,0.41482]
[1756994976187,3.2078,4339.2,4338.3,0.4148]
[1756994976388,1.4472,4339.4,4338.4,3.4818]
[1756994976582,1.4472,4339.4,4338.4,3.89659]
[1756994976786,3.8332,4339.8,4339.0,1.505]
[1756994976978,3.8332,4339.8,4339.1,0.274]
[1756994977390,1.4472,4339.7,4339.1,0.274]
[1756994978279,1.4472,4339.7,4338.5,0.274]
[1756994979284,1.4472,4339.7,4338.8,3.2078]
[1756994979683,7.32959028,4339.8,4338.3,3.2078]
[1756994979893,1.4472,4339.7,4338.4,0.274]
[1756994980094,1.4472,4339.7,4338.5,1.505]
[1756994980589,1.4472,4339.7,4338.3,3.2078]
[1756994980893,3.2078,4338.8,4338.4,0.274]
[1756994981089,3.2078,4338.8,4337.8,35.0118]
[1756994981090,1.4472,4338.5,4337.8,35.0118]
[1756994981289,1.4472,4338.5,4337.9,0.274]
[1756994981694,2.0726,4338.5,4337.9,0.274]
[1756994982093,1.86204,4338.0,4337.9,0.274]
[1756994982595,0.41484,4338.0,4337.9,1.7643]
[1756994982998,0.41484,4338.0,4337.9,9.88609028]
[1756994983388,0.41484,4338.0,4337.8,31.804]
[1756994983590,1.92634,4338.0,4337.9,0.274]
[1756994983800,3.2078,4338.3,4337.3,4.6981]
[1756994983801,0.41489,4337.4,4337.3,4.6981]
[1756994984094,0.41489,4337.4,4337.3,1.7643]
[1756994984299,1.92639,4337.4,4337.3,0.274]
[1756994984991,1.5115,4337.4,4336.7,4.6981]
[1756994985197,1.5115,4337.4,4336.8,0.274]
[1756994985400,3.2078,4337.8,4336.8,0.274]
[1756994985605,3.2078,4337.8,4337.2,4.12179028]
[1756994985798,1.5115,4337.7,4337.3,0.274]
[1756994986108,1.5115,4337.6,4337.4,0.274]
[1756994986307,1.5115,4337.7,4337.4,1.7643]
[1756994986606,3.2078,4337.8,4337.5,1.4903]
[1756994986800,1.5115,4337.7,4337.4,0.274]
[1756994986995,3.2078,4337.8,4337.5,1.4903]
[1756994987201,1.5115,4337.7,4336.8,1.4903]
[1756994987497,1.5115,4337.7,4336.9,0.274]
[1756994988311,1.5115,4337.7,4337.0,0.274]
[1756994989100,3.2078,4337.3,4337.0,0.274]
[1756994989303,3.2078,4337.3,4336.3,1.4903]
[1756994989608,3.2078,4336.8,4335.6,5.26661765]
[1756994989911,1.5115,4336.7,4335.7,0.274]
[1756994990402,1.5115,4335.9,4335.1,3.4818]
[1756994990604,1.5115,4335.9,4335.2,0.274]
[1756994990796,0.5984,4334.5,4334.2,2.05881765]
[1756994991001,3.2078,4334.3,4333.1,4.08222334]
[1756994991206,0.274,4334.5,4333.2,0.6072]
[1756994991402,0.34604,4334.4,4333.3,1.4903]
[1756994991602,0.1153,4334.4,4333.3,1.4903]
[1756994991807,3.2078,4334.2,4333.3,1.4903]